Cogmind - Beta 17 @@@ ROGUE MODE // 2026.07.10 @ 02:58:55 Player: Slow Result: Destroyed by G-34 Mercenary with Small Laser Performance ------------- Evolutions (1) 500 Regions Visited (3) 600 Robots Destroyed (70) 350 Value Destroyed (1630) 1630 Prototype IDs (2) 40 Alien Tech Used (0) 0 Bonus (36) 36 TOTAL SCORE: 3156 Bonus ------- High Alert Combat Kills 11 Follower Combat Kills 25 Cogmind --------- Core Integrity 0/400 Matter 194/300 Energy 100/100 System Corruption 1% Temperature Cool (6) Movement Treading (240) Ox1 Location -9/Storage Parts ------- > --- POWER (1) -------- (None) > --- PROPULSION (2) --- Improved Treads > --- UTILITY (4) ------ Large Storage Unit Structural Scanner > --- WEAPON (2) ------- Maul > --- INVENTORY (15) --- Light Ion Engine Improved Treads Improved Treads Armored Wheel Improved Flight Unit Improved Flight Unit Improved Flight Unit Improved Flight Unit Improved Flight Unit Improved Flight Unit Gravity Neutralizer Weapon Shielding Light EM Pulse Cannon Rocket Launcher Peak State ------------ > --- POWER ------------ Improved Ion Engine > --- PROPULSION ------- Improved Treads Wheel > --- UTILITY ---------- Heat Sink Large Storage Unit Gravity Neutralizer Structural Scanner > --- WEAPON ----------- Heavy Assault Rifle Autogun > --- INVENTORY -------- Ion Engine Light Ion Engine Improved Treads High-capacity Storage Unit Small Matter Pod Targeting Computer Light Armor Plating Beam Rifle Light EM Pulse Cannon EMP Blaster Rocket Launcher Mace Maul [Rating: 20] Favorites ----------- Power Improved Ion Engine Engine Improved Ion Engine Propulsion Improved Treads Treads Improved Treads Wheel Wheel Utility Large Storage Unit Device Structural Scanner Storage Large Storage Unit Protection Light Armor Plating Weapon Assault Rifle Energy Gun Beam Rifle Energy Cannon Light EM Pulse Cannon Ballistic Gun Assault Rifle Launcher EMP Blaster Impact Weapon Maul Build | -11 -10 -9 -9 ------- Run | Yrd Mat Mat Sto Slots Evolved 2 | . . 2 . Power . | . . . . Propulsion . | . . . . Utility 2 | . . 2 . Weapon . | . . . . Parts Attached 47 | 6 10 20 11 Power 7 | . 3 2 2 Engine 7 | . 3 2 2 Core . | . . . . Reactor . | . . . . Propulsion 11 | 2 3 4 2 Treads 7 | 1 2 3 1 Leg . | . . . . Wheel 4 | 1 1 1 1 Hover . | . . . . Flight . | . . . . Utility 16 | 2 3 8 3 Device 7 | 1 2 2 2 Storage 4 | 1 1 2 . Processor . | . . . . Hackware . | . . . . Protection 5 | . . 4 1 Artifact . | . . . . Weapon 13 | 2 1 6 4 Energy Gun 2 | 1 . 1 . Energy Cannon 1 | . . 1 . Ballistic Gun 6 | 1 1 1 3 Ballistic Cannon . | . . . . Launcher 2 | . . 2 . Special Weapon . | . . . . Impact Weapon 2 | . . 1 1 Slashing Weapon . | . . . . Piercing Weapon . | . . . . Special Melee Weapon . | . . . . Unidentified Prototypes 2 | . . . 2 Parts Lost 11 | . . 5 6 Power 2 | . . . 2 Propulsion 3 | . . 1 2 Utility 5 | . . 3 2 Weapon 1 | . . 1 . Highest Loss Streak 3 | . . 2 3 To Critical Strikes . | . . . . Average Backups 13 | 4 12 13 14 Power 1 | 1 . 1 2 Propulsion 3 | 2 4 3 2 Utility 4 | . 4 5 3 Weapon 3 | . . 3 5 Tool/Special . | . . . . Unused Backups 22 | . 5 1 16 Power 2 | . 1 . 1 Propulsion 13 | . 3 . 10 Utility 5 | . . 1 4 Weapon 1 | . . . 1 Tool/Special 1 | . 1 . . Average Slot Usage (%) 96 | . 95 96 98 Engine 10 | . 9 11 10 Treads 13 | . 18 13 11 Wheel 9 | . 9 8 10 Device 20 | . 14 23 22 Storage 11 | . 14 11 11 Protection 6 | . . 6 9 Energy Gun 4 | . 9 2 4 Energy Cannon 2 | . . 3 2 Ballistic Gun 14 | . 18 12 13 Impact Weapon 1 | . . 2 1 Peak Build Rating 20 | 6 10 15 20 Average Rating 12 | 4 7 13 15 On Entrance 7 | . 6 9 15 Avg Prop Armor Cover (%) 9 | 15 12 9 7 Naked Turns . | . . . . Heaviest Build 41 | 10 30 41 41 Greatest Support 46 | 10 40 46 35 Greatest Overweight (x) 4 | . 2 4 4 Average Overweight (x) 1 | . 1 2 2 Largest Inventory Capacity 20 | 8 15 20 15 Average Capacity 14 | 7 14 15 15 Most Carried 15 | 8 15 15 15 Average Carried 13 | 5 12 13 14 Final Capacity 15 | 8 15 15 15 Final Carried 15 | 8 14 15 14 Class Distribution -------------------- 71% | Mutant 28% | Scavenger-Mutant Dominant Class ---------------- Mutant | -10/Materials Mutant | -9/Materials Scavenger-Mutant | -9/Storage Resources | -11 -10 -9 -9 ----------- Run | Yrd Mat Mat Sto Matter Collected 1662 | 246 306 689 421 Remotely . | . . . . Salvage Created 2237 | 132 425 967 713 Parts 146 | 15 20 64 47 Haulers Intercepted 1 | . . . 1 Recyclers Shooed . | . . . . Parts Field Recycled . | . . . . Retrieved Matter . | . . . . Parts Self-Destructed . | . . . . Prevented . | . . . . Parts Restored . | . . . . Kills | -11 -10 -9 -9 ------- Run | Yrd Mat Mat Sto Combat Hostiles Destroyed 55 | . 10 28 17 Melee 3 | . . 3 . Guns 40 | . 10 17 13 Cannons 1 | . . 1 . AOE 7 | . . 3 4 Classes Destroyed 8 | 2 4 1 1 Worker 1 | . 1 . . Tunneler 4 | 4 . . . Hauler 1 | . . . 1 Recycler 2 | 1 . 1 . Watcher 7 | . 2 3 2 Swarmer 24 | . 3 14 7 Grunt 19 | . 7 7 5 Sentry 12 | . . 7 5 Best Kill Streak 5 | 5 4 5 5 Combat Bots Only 5 | . 3 5 5 Max Kills in Single Turn 3 | 1 2 3 3 Gunslinging . | . . . . Exploded 3 | . . 3 3 Melee 1 | . . 1 . Uniques/NPCs Destroyed . | . . . . Combat | -11 -10 -9 -9 -------- Run | Yrd Mat Mat Sto Hostile Shots Fired 282 | . 42 141 99 Missed 74 | . 11 34 29 Hits 208 | . 31 107 70 Melee 7 | . . . 7 Projectile 201 | . 31 107 63 Critical Strikes 10 | . 1 2 7 Damage Taken 2625 | 5 344 1192 1084 Core 461 | . 57 193 211 Absorbed by Shields 46 | . . 46 . Regen/Repaired (Parts) 242 | . 70 47 125 Core Remaining (%) 88 | 100 77 . . Volleys Fired 184 | 8 38 78 60 Largest 2 | 2 2 2 2 Hottest 89 | 70 70 79 89 Shots Fired 341 | 16 76 141 108 Gun 310 | 16 76 125 93 Cannon 24 | . . 15 9 Launcher 7 | . . 1 6 Special . | . . . . Kinetic 226 | 8 46 101 71 Thermal 84 | 8 30 24 22 Explosive 1 | . . 1 . Electromagnetic 30 | . . 15 15 Robot Hit Streak 22 | 4 10 12 22 Robot Miss Streak 5 | 1 4 5 5 Penetration Max . | . . . . Secondary Targets 4 | . . 3 1 Max Gunslinging Chain 1 | . . 1 1 Shots Hit Robots 234 | 12 44 109 69 Core Hits 95 | 6 23 36 30 Critical Kills 2 | . . 2 . Critical Parts Destroyed 2 | . . 1 1 Critical Strikes 14 | 1 2 6 5 Burn 10 | 1 2 3 4 Destroy 1 | . . . 1 Smash 3 | . . 3 . Melee Attacks 26 | . . 15 11 Impact 26 | . . 15 11 Slashing . | . . . . Piercing . | . . . . Sneak Attacks 3 | . . 3 . Combat Hostiles 2 | . . 2 . Follow-up Attacks . | . . . . Damage Inflicted 4268 | 157 568 2207 1336 Guns 2836 | 147 567 1178 944 Cannons 416 | . . 254 162 Explosions 386 | . . 156 230 Melee 619 | . . 619 . Ramming 11 | 10 1 . . Kinetic 2019 | 60 303 958 698 Thermal 955 | 87 264 220 384 Explosive 156 | . . 156 . Electromagnetic 508 | . . 254 254 Impact 619 | . . 619 . Slashing . | . . . . Piercing . | . . . . Highest Corruption 1 | . . 1 1 Average Corruption 1 | . . 1 1 Corruption Purged . | . . . . Corruption Blocked . | . . . . Effects 14 | . . 3 11 Message Errors 3 | . . 1 2 Matter Fused 2 | . . . 2 Heat Flow Errors 4 | . . 1 3 Energy Discharges 3 | . . 1 2 Data Loss (minor) 1 | . . . 1 Misfires 1 | . . . 1 Overload Shots . | . . . . Overflow Damage 187 | . . 164 23 Projectiles 22 | . . 14 8 Explosions 15 | . . . 15 Melee 150 | . . 150 . Knockbacks 2 | . . 2 . Impact 2 | . . 2 . Kinetic . | . . . . Secondary . | . . . . Self-Inflicted Damage 84 | 5 . . 79 Shots 3 | . . . 3 Rammed 2 | 1 1 . . Targets Rammed 2 | 1 1 . . Kicked . | . . . . Crushed . | . . . . Highest Temperature 226 | . 72 226 188 Average Temperature 55 | . 24 73 55 Received Heat Transfer 732 | . 141 312 279 Effects 1 | . . 1 . Energy Bleed 1 | . . 1 . Siege Activations . | . . . . Martial Activations . | . . . . Shielding Activations . | . . . . Robots Disrupted . | . . . . Combat Hostiles . | . . . . Robots Corrupted 3 | . . 3 . Combat Hostiles 3 | . . 3 . Parts Fried 7 | . . 6 1 Impact Corruptions 5 | . . 5 . Robots Melted 1 | . . 1 . Combat Hostiles 1 | . . 1 . Parts Melted 10 | . 1 4 5 Heat Transferred 3210 | 333 925 777 1175 Parts Sabotaged . | . . . . Parts Stolen . | . . . . Parts Stripped . | . . . . Power Chain Reactions 3 | . . . 3 Alert | -11 -10 -9 -9 ------- Run | Yrd Mat Mat Sto Maximum Alert Level 2 | . . 2 1 Low Security (%) 75 | 100 100 56 81 Level 1 23 | . . 42 18 Level 2 . | . . . . Level 3 . | . . . . Level 4 . | . . . . Level 5 . | . . . . High Security . | . . . . Max Security . | . . . . Peak Influence 400 | 15 91 400 239 Initial 157 | . . 5 157 Average 133 | 3 28 172 172 Influence Increases 1776 | 25 332 882 537 Destroy 0b10 Robot/C 1120 | . 200 560 360 Destroy 0b10 Robot/NC 90 | 25 15 20 30 Destroy Leader 266 | . 44 146 76 Allied During Kill 3 | . . . 3 Successful Hack 82 | . 26 41 15 Disable Machine 15 | . 15 . . Destroy Structure 35 | . 2 10 23 Partial Spotted 15 | . . . 15 Lose Combat Pursuer 150 | . 30 105 15 Influence Decreases 1652 | 25 319 522 786 Entered New Map 224 | . . 8 216 Time Decay 1278 | 25 319 464 470 Lost Part 110 | . . 50 60 Lost Ally 40 | . . . 40 Squads Dispatched 9 | . 1 4 4 Investigation 4 | . 1 2 1 Extermination . | . . . . Reinforcement 3 | . . 2 1 Assault 2 | . . . 2 Garrison . | . . . . Intercept . | . . . . Searches Triggered . | . . . . Construction Impeded . | . . . . Haulers Reinforced . | . . . . Active Scanning Responses . | . . . . Cargo Convoy Interrupts . | . . . . Stealth | -11 -10 -9 -9 --------- Run | Yrd Mat Mat Sto Distress Signals 3 | . 1 2 . Communications Jammed . | . . . . Distress Signals . | . . . . Times Spotted 89 | . 20 37 32 Peak Tracking Total 9 | . 5 9 9 Tactical Retreats 6 | . 2 3 1 Traps | -11 -10 -9 -9 ------- Run | Yrd Mat Mat Sto Traps Triggered 3 | . 1 2 . Indirectly . | . . . . Trap Hack Attempts . | . . . . Triggered . | . . . . Disarmed . | . . . . Reprogrammed . | . . . . Reused . | . . . . Traps Extracted . | . . . . Installed . | . . . . Triggered . | . . . . Machines | -11 -10 -9 -9 ---------- Run | Yrd Mat Mat Sto Machines Disabled 1 | . 1 . . Max in Single Turn 1 | . 1 . . Garrison Access 1 | . . . 1 Machines Repaired . | . . . . Machines Dismantled . | . . . . Machines Sabotaged . | . . . . Overloaded Fab Kills . | . . . . Hacking | -11 -10 -9 -9 --------- Run | Yrd Mat Mat Sto Machines Accessed 29 | . 8 10 11 Terminals 19 | . 6 6 7 Fabricators . | . . . . Repair Stations 4 | . 1 1 2 Recycling Units 4 | . 1 2 1 Scanalyzers 1 | . . 1 . Garrison Access 1 | . . . 1 Total Hacks 85 | . 19 35 31 Successful 55 | . 12 26 17 Failed 29 | . 7 8 14 Catastrophic 5 | . . 1 4 Database Lockouts 1 | . . 1 . Manual 42 | . 12 15 15 Terminals 60 | . 16 22 22 Fabricators . | . . . . Repair Stations 11 | . 2 2 7 Recycling Units 5 | . 1 3 1 Scanalyzers 8 | . . 8 . Garrison Access 1 | . . . 1 Terminal Hacks 23 | . 5 11 7 Record 1 | . . 1 . Open Door 2 | . . . 2 Branch Access Points 2 | . . 1 1 Terminal Index 2 | . 1 1 . Alert Level 1 | . . . 1 Locate Traps 4 | . 2 2 . Reinforcement Status 1 | . . 1 . Recall Investigation 1 | . . 1 . Recall Reinforcements 1 | . . 1 . Zone Layout 8 | . 2 3 3 Fabricator Hacks . | . . . . Repair Station Hacks 9 | . 2 2 5 Scan Component 5 | . 1 1 3 Repair 4 | . 1 1 2 Recycling Unit Hacks 4 | . 1 2 1 Report Inventory 4 | . 1 2 1 Scanalyzer 7 | . . 7 . Insert Component 3 | . . 3 . Analyze 3 | . . 3 . Retrieve Study 1 | . . 1 . Garrison Access Hacks 1 | . . . 1 Seal Access 1 | . . . 1 Unauthorized Hacks 11 | . 4 4 3 Terminals 11 | . 4 4 3 Botnet 11 | . 4 4 3 Fabricators . | . . . . Repair Stations . | . . . . Recycling Units . | . . . . Scanalyzers . | . . . . Garrison Access . | . . . . Data Cores Recovered . | . . . . Used . | . . . . Hacking Detections 20 | . 6 7 7 Full Trace Events 3 | . . 2 1 Feedback Events 1 | . . 1 . Corruption 1 | . . 1 . Feedback Blocked . | . . . . Robot Schematics Acquired . | . . . . Robots Built . | . . . . Authchips . | . . . . Time . | . . . . Total Robot Build Rating . | . . . . Part Schematics Acquired 2 | . . 2 . Parts Built . | . . . . Authchips . | . . . . Time . | . . . . Total Part Build Rating . | . . . . Part Studies Acquired 1 | . . 1 . Parts Repaired 4 | . 1 1 2 Time 104 | . 26 26 52 Parts Recycled . | . . . . Recycled Matter . | . . . . Retrieved Matter . | . . . . Retrieved Components . | . . . . Parts Scanalyzed 2 | . . 2 . Part Schematics Acquired 2 | . . 2 . Parts Damaged . | . . . . Bothacking | -11 -10 -9 -9 ------------ Run | Yrd Mat Mat Sto Used RIF Installer . | . . . . Robots Hacked . | . . . . Non-combat . | . . . . Combat . | . . . . Robot Hacks Applied . | . . . . Relay Couplers Released . | . . . . Fabnet Peak Effective % . | . . . . Robots Rewired . | . . . . Allies Hacked . | . . . . Hacks Repelled . | . . . . Allies | -11 -10 -9 -9 -------- Run | Yrd Mat Mat Sto Total Allies 2 | . . . 2 Largest Group 2 | . . . 2 Highest-Rated Group 62 | . . . 62 Highest-Rated Ally 31 | . . . 31 Total Orders . | . . . . Ally Attacks 11 | . . . 11 Total Damage 205 | . . . 205 Kills 1 | . . . 1 Allies Corrupted . | . . . . Allies Melted . | . . . . Intel | -11 -10 -9 -9 ------- Run | Yrd Mat Mat Sto Active Infowar (turns) 3818 | 23 926 1676 1193 Sensors 1632 | . 153 1479 . Structural 2866 | . . 1673 1193 Seismic 796 | 23 773 . . Robot Analysis Total . | . . . . Derelict Logs Recovered . | . . . . Drone Launches . | . . . . Drone Recoveries . | . . . . Exploration | -11 -10 -9 -9 ------------- Run | Yrd Mat Mat Sto Turns Passed 3899 | 104 926 1676 1193 Spaces Moved 2062 | 80 594 819 569 Core 5 | 5 . . . Treads 471 | . 120 190 161 Legs . | . . . . Wheels 1586 | 75 474 629 408 Hover . | . . . . Flight . | . . . . Fastest Speed 50 | 50 80 110 85 Average Speed 127 | 78 112 132 143 Slowest Speed 240 | 80 160 240 240 Overloaded Moves . | . . . . Propulsion Burnouts . | . . . . Robots Hopped . | . . . . Potential Cave-ins . | . . . . Cave-ins Triggered . | . . . . Exploration Rate (%) 60 | 3 88 71 80 Regions Visited 3 Branch Regions 1 Pre-discovered Areas . | . . . . Known Exits Taken 1 | . . 1 . Unknown Exits Taken 2 | 1 1 . . Scrap Searched . | . . . . Spaces Dug 6 | . . 1 5 Terrain Destroyed 28 | . . 7 21 Melee 6 | . . 1 5 Projectile . | . . . . AOE 22 | . . 6 16 Terrain Rammed . | . . . . Walls Destroyed . | . . . . Machines Disabled . | . . . . Actions | -11 -10 -9 -9 --------- Run | Yrd Mat Mat Sto Total 2925 | 102 774 1228 821 Wait 473 | . 103 247 123 Move 2060 | 80 593 818 569 Hop . | . . . . Pick Up 53 | 8 13 17 15 Fast Attach 16 | 6 2 5 3 Attach 12 | . 2 6 4 Detach 1 | . . . 1 Swap 57 | . 8 30 19 Drop 39 | . 12 12 15 Fire 184 | 8 38 78 60 Melee 26 | . . 15 11 Ram 1 | . 1 . . Kick . | . . . . Crush . | . . . . Escape Stasis . | . . . . Rewire 3 | . 2 . 1 Trap . | . . . . Miscellaneous . | . . . . Route ------- -11/Scrapyard -10/Materials (discovered 5 exits: *Mat x3 / [*Min x2]) -9/Materials (discovered 5 exits: [*Mat x2] / *Min x2 / *Sto) -9/Storage (discovered 2 exits: [*Mat] / Rec) History --------- Turn | Location | Event 20 | -11/Scrapyard | Discovered new exit (range 15) 105 | -11/Scrapyard | Entered Materials 244 | -10/Materials | Discovered new exit (range 6) 306 | -10/Materials | Build established: Mutant 318 | -10/Materials | Discovered new exit (range 5) 667 | -10/Materials | Repaired Lgt. Treads 680 | -10/Materials | Discovered new exit (range 11) 874 | -10/Materials | Discovered new exit (range 15) 944 | -10/Materials | Discovered new exit (range 12) 1031 | -10/Materials | Entered another Materials area 1031 | -9/Materials | Evolved 2 slots: Utility x2 1483 | -9/Materials | Repaired Assault Rifle 1525 | -9/Materials | Discovered new exit (range 10) 1632 | -9/Materials | Discovered new exit (range 16) 2156 | -9/Materials | Discovered new exit (range 16) 2233 | -9/Materials | Central database locked down 2306 | -9/Materials | Discovered new exit (range 5) 2471 | -9/Materials | Discovered new exit (range 6) 2635 | -9/Materials | Build established: Scavenger-Mutant 2661 | -9/Materials | Identified exit to Mines 2661 | -9/Materials | Identified exit to Storage 2707 | -9/Materials | Entered Storage 2770 | -9/Storage | Core integrity fell below 50% 2813 | -9/Storage | Lost 3 parts (1p1n1u) 2844 | -9/Storage | Repaired Lgt. Armor Plating 3076 | -9/Storage | Build established: Mutant 3177 | -9/Storage | Repaired Wheel+ 3517 | -9/Storage | Build established: Scavenger-Mutant 3533 | -9/Storage | Identified exit to Recycling 3747 | -9/Storage | Core integrity fell below 20% 3838 | -9/Storage | Discovered new exit (range 6) 3845 | -9/Storage | Met a pair of Derelict thieves 3900 | -9/Storage | Destroyed by G-34 Mercenary with Small Laser Last Messages --------------- 03847_ System corrupted: Hvy. Assault Rifle misfires. 03855_ ALERT: Breach in storage area. Dispatching assault force. 03855_ ER-DO3(g): "So much for stealth, let's take what we have and get out of here before it's too late." 03855_ Dropped Imp. Treads. 03855_ Acquired Imp. Treads. 03865_ VV-YC5(g) destroyed. 03868_ G-47 Trooper destroyed. 03869_ G-34 Mercenary destroyed. 03878_ ER-DO3(g) destroyed. 03880_ Hvy. Assault Rifle severed. 03883_ Wheel+ destroyed. 03885_ Autogun severed. 03888_ Lgt. Armor Plating severed. 03899_ Heat Sink destroyed. 03899_ Imp. Ion Engine destroyed. [Achievement: Just Browsing] Map ----- +----------------------------------------------------+ | | | | | | | | | | | | | | | | | | | | | | | | | | | | | | | | | | | | | ???????????????????????????????? | | ???????????????????????????????? | | ???????????????????????????????? | | ??????????????#######??????????? | | ??????????????#######??????????? | | ??????????????## ##########??? | | ??????????????## < ##########??? | | ??????????????## # #[[@=##??? | | ??????????????## # "lgl ##??? | | ??????????????## #=[gm*!=##??? | | ????############ /g="g= ##??? | | ??############## ##T#[== ##??? | | ###### #### = =##??? | | ####T# ##########??? | | # [ + ##########??? | | # !*# ############??????????? | | # =# ############??????????? | | ###### ##????????????????????? | | ###### ##????????????????????? | | ????## ##????????????????????? | | ###### ##????????????????????? | | ###### ##????????????????????? | | ##????????????????????? | | ###### ##????????????????????? | | ###### ##????????????????????? | | ###### ##????????????????????? | | ###### *# ????????????????????? | | # %# ????????????????????? | | """ # # ????????????????????? | | """ # # ????????????????????? | | """ + + ????????????????????? | | """ # # ????????????????????? | +----------------------------------------------------+ Best States ------------- Heat Dissipation 38 Energy Generation 12 Energy Capacity 265 Matter Stores 300 Matter Capacity 300 Sight Range 16 Robot Scan Range 14 Terrain Scan Density 10 Additional Mass Support 12 Armor Coverage 300 Evasion (%) 44 Recoil Reduction 2 Item Schematics ----------------- Imp. Treads | -9/Materials | Scanalyzed Wheel | -9/Materials | Scanalyzed Robot Schematics ------------------ None Fabricated ------------ Nothing Repaired ---------- Lgt. Treads | 50% | -10/Materials Assault Rifle | 53% | -9/Materials Lgt. Armor Plating | 1% | -9/Storage Wheel | 10% | -9/Storage Studied --------- Wheel | -9/Materials | Hacked Alien Tech Used ----------------- None Achievements -------------- Just Browsing root@ Challenges ------------ None Game ------ Seed ThermicCombatMask Manual? 0 Play Time 02:03:13 Cumulative 34.1 hours Start 2026.07.07 @ 19:16:43 End 2026.07.10 @ 02:58:55 Sessions 3 Manual Loads 0 Difficulty Rogue Special Mode None Game No. 18 Rogue 18 Adventurer 0 Explorer 0 Win Type - Total 0 Types 0/0/0/0/0/0/0/0/0/0 Lore% 11 Gallery% 25 Achievement% 16 Wizard Run 0 Options --------- Layout 1 ASCII 0 Keyboard 0 Movement Numpad Keybinds 0 Fullscreen 1 Font 24/Smallcaps Map View 50x35 Zoom Use 0% Tactical HUD 1 Map Filters NONE Filters NONE Steam 1 RUN: 87ca18c8-b319-4477-9958-f53077851a15